bitfinex/quotes_BTCUSD_20251207
["timestamp","ask_amount","ask_price","bid_price","bid_amount"]
[1765083233474,0.01116121,89596.0,89592.0,0.01216171]
[1765083233814,0.01116121,89596.0,89593.0,0.01116158]
[1765083234059,0.01116121,89596.0,89593.0,0.01216158]
[1765083235372,0.2343856,89596.0,89593.0,0.01216158]
[1765083235586,0.01509,89594.0,89593.0,0.001]
[1765083235883,0.0373981,89594.0,89593.0,0.001]
[1765083236029,0.0796881,89594.0,89593.0,0.001]
[1765083236469,0.18834911,89594.0,89593.0,0.001]
[1765083236672,0.19873692,89594.0,89593.0,0.001]
[1765083237008,0.01116395,89574.0,89571.0,0.04129363]
[1765083237150,0.07689747,89572.0,89571.0,0.04129363]
[1765083237950,0.07689747,89572.0,89571.0,0.01116432]
[1765083238148,0.07689747,89572.0,89571.0,0.01316432]
[1765083238351,0.07689747,89572.0,89571.0,0.01116432]
[1765083238572,0.07689747,89572.0,89571.0,0.04129363]
[1765083238776,0.07689747,89572.0,89571.0,0.03212931]
[1765083239041,0.11553747,89572.0,89571.0,0.03212931]
[1765083239615,0.11553747,89572.0,89571.0,0.03412931]
[1765083241154,0.01198,89576.0,89573.0,0.01116407]
[1765083241928,0.01116357,89577.0,89574.0,0.01116395]
[1765083242276,0.0111632,89580.0,89577.0,0.01116357]
[1765083243036,0.01116295,89582.0,89577.0,0.01116357]
[1765083243242,0.01116258,89585.0,89579.0,0.01116333]
[1765083243445,0.0111627,89584.0,89581.0,0.02713308]
[1765083243648,0.22326661,89579.0,89574.0,0.06465266]
[1765083243854,0.01198,89575.0,89574.0,0.0456873]
[1765083244283,0.01198,89575.0,89574.0,0.0446873]
[1765083245214,0.01198,89575.0,89574.0,0.0456873]
[1765083245719,0.01198,89575.0,89574.0,0.0466873]
[1765083256439,0.01116283,89583.0,89577.0,0.01116357]
[1765083256641,0.0176,89584.0,89582.0,0.01065]
[1765083257440,0.29019433,89587.0,89582.0,0.01065]
[1765083257642,0.01116258,89585.0,89582.0,0.02181295]
[1765083257869,0.001,89584.0,89582.0,0.02181295]
[1765083260164,0.01116258,89585.0,89582.0,0.02181295]
[1765083260411,0.01116258,89585.0,89582.0,0.02381295]
[1765083260808,0.06694747,89587.0,89584.0,0.23441685]
[1765083261306,0.06694747,89587.0,89584.0,0.0111627]
[1765083263823,0.0781098,89587.0,89584.0,0.001]
[1765083264901,0.22324916,89586.0,89584.0,0.001]
[1765083265894,0.22325479,89584.0,89582.0,0.01065]
[1765083266851,0.01116258,89585.0,89582.0,0.01065]
[1765083267049,0.01116258,89585.0,89582.0,0.01265]
[1765083267694,0.01116258,89585.0,89582.0,0.01165]
[1765083268191,0.01116258,89585.0,89582.0,0.01065]
[1765083268601,0.01116258,89585.0,89582.0,0.01165]
[1765083268897,0.01116258,89585.0,89582.0,0.05289288]
[1765083269340,0.01116258,89585.0,89582.0,0.05389288]
[1765083270833,0.22324916,89586.0,89582.0,0.2771513]
[1765083271033,0.23441161,89586.0,89582.0,0.05389288]
[1765083271810,0.23441161,89586.0,89583.0,0.01116283]
[1765083272205,0.07906747,89587.0,89584.0,0.23441685]
[1765083272411,0.06694747,89587.0,89584.0,0.28578678]
[1765083272856,0.06694747,89587.0,89584.0,0.26449678]
[1765083274024,0.06694747,89587.0,89584.0,0.26549678]
[1765083276844,0.06694747,89587.0,89585.0,0.03007993]
[1765083277399,0.06694747,89587.0,89586.0,0.22324916]
[1765083279286,0.06694747,89587.0,89586.0,0.22424916]
[1765083298655,0.0176,89594.0,89591.0,0.01116183]
[1765083300030,0.0176,89594.0,89589.0,0.01116208]
[1765083300031,0.01116158,89593.0,89589.0,0.01116208]
[1765083300244,0.01116158,89593.0,89588.0,0.04129083]
[1765083300245,0.23439592,89592.0,89588.0,0.03012863]
[1765083300688,0.03711,89591.0,89588.0,0.03012863]
[1765083300895,0.22323928,89590.0,89588.0,0.03012863]
[1765083301011,0.22323928,89590.0,89587.0,0.04077863]
[1765083301012,0.22324418,89588.0,89587.0,0.04077863]
[1765083302354,0.22324418,89588.0,89587.0,0.01065]
[1765083303474,0.22424418,89588.0,89587.0,0.01065]
[1765083304489,0.01116233,89587.0,89584.0,0.0223254]
[1765083304694,0.0781098,89587.0,89584.0,0.0223254]
[1765083305957,0.06694747,89587.0,89584.0,0.24657876]
[1765083306575,0.06694747,89587.0,89585.0,0.22324918]
[1765083306957,0.01241,89591.0,89587.0,0.22324624]
[1765083307174,0.01241,89591.0,89589.0,0.03014143]
[1765083307398,0.01241,89591.0,89590.0,0.03014143]
[1765083307977,0.01241,89591.0,89589.0,0.03014143]
[1765083308205,0.2356467,89591.0,89589.0,0.03014143]
[1765083308416,0.2356467,89591.0,89590.0,0.03014143]
[1765083309956,0.2366467,89591.0,89590.0,0.03014143]
[1765083310341,0.2356467,89591.0,89590.0,0.03014143]
[1765083310548,0.2376467,89591.0,89590.0,0.03014143]
[1765083310712,0.2376467,89591.0,89589.0,0.03014143]
[1765083311141,0.23440377,89589.0,89585.0,0.01116258]
[1765083311352,0.06694747,89587.0,89585.0,0.01116258]
[1765083311981,0.06694747,89587.0,89585.0,0.23441402]
[1765083313112,0.06694747,89587.0,89585.0,0.23541402]
[1765083313322,0.06694747,89587.0,89585.0,0.01216258]
[1765083313663,0.06694747,89587.0,89585.0,0.23541413]
[1765083314708,0.06694747,89587.0,89585.0,0.01216258]
[1765083315758,0.03909,89586.0,89585.0,0.001]
[1765083316523,0.06139,89586.0,89585.0,0.001]
[1765083316726,0.0111627,89584.0,89581.0,0.04017909]
[1765083316927,0.02733,89582.0,89581.0,0.04017909]
[1765083317326,0.05078,89582.0,89581.0,0.04017909]
[1765083318306,0.22326162,89581.0,89580.0,0.04017909]
[1765083318546,0.24671162,89581.0,89580.0,0.04017909]
[1765083318774,0.26235162,89581.0,89580.0,0.04017909]
[1765083319791,0.26235162,89581.0,89580.0,0.04117909]
[1765083319991,0.26235162,89581.0,89580.0,0.001]
[1765083320984,0.26235162,89581.0,89577.0,0.03014037]
[1765083320985,0.2232691,89578.0,89577.0,0.03014037]
[1765083321191,0.2232691,89578.0,89576.0,0.03014037]
[1765083321192,0.2389091,89578.0,89576.0,0.03014037]
[1765083321433,0.02345,89577.0,89576.0,0.03014037]
[1765083321729,0.05078,89577.0,89576.0,0.03014037]
[1765083322227,0.05078,89577.0,89571.0,0.05134341]
[1765083322228,0.22327409,89576.0,89575.0,0.03014037]
[1765083322433,0.24672409,89576.0,89575.0,0.03014037]
[1765083322667,0.26236409,89576.0,89574.0,0.03014037]
[1765083322882,0.23891409,89576.0,89574.0,0.03014037]
[1765083323050,0.05078,89575.0,89574.0,0.03014037]
[1765083324465,0.05078,89575.0,89574.0,0.03114037]
[1765083325261,0.07308,89575.0,89574.0,0.001]
[1765083325469,0.07308,89575.0,89574.0,0.002]
[1765083325872,0.05078,89575.0,89574.0,0.002]
[1765083328621,0.07308,89575.0,89574.0,0.002]
[1765083328830,0.05078,89575.0,89574.0,0.002]
[1765083329188,0.07308,89575.0,89574.0,0.002]
[1765083330235,0.07308,89575.0,89574.0,0.001]
[1765083330646,0.03346407,89573.0,89570.0,0.00131389]
[1765083330853,0.09427747,89571.0,89570.0,0.00131389]
[1765083331271,0.11772747,89571.0,89570.0,0.00131389]
[1765083332095,0.11872747,89571.0,89570.0,0.00131389]
[1765083335398,0.11872747,89571.0,89570.0,0.03484009]
[1765083341872,0.09527747,89571.0,89570.0,0.03484009]
[1765083342078,0.31856402,89571.0,89570.0,0.0335262]
[1765083342279,0.31856402,89571.0,89570.0,0.03484009]
[1765083342845,0.34311402,89571.0,89570.0,0.03484009]
[1765083343112,0.36541402,89571.0,89570.0,0.00131389]
[1765083345478,0.34311402,89571.0,89570.0,0.00131389]
[1765083349724,0.36541402,89571.0,89570.0,0.00131389]
[1765083351994,0.30883402,89571.0,89570.0,0.00131389]
[1765083352898,0.30783402,89571.0,89570.0,0.00131389]
[1765083353604,0.30783402,89571.0,89570.0,0.00231389]
[1765083355758,0.29023402,89571.0,89570.0,0.00231389]
[1765083358002,0.23443796,89576.0,89570.0,0.01878389]
[1765083358199,0.01116295,89582.0,89575.0,0.26155993]
[1765083358345,0.01116295,89582.0,89581.0,0.01065]
[1765083358983,0.01116283,89583.0,89581.0,0.02181295]
[1765083359411,0.002,89582.0,89581.0,0.02181295]
[1765083359694,0.01116283,89583.0,89581.0,0.02181295]
[1765083360122,0.01116283,89583.0,89581.0,0.01065]
[1765083360123,0.002,89582.0,89581.0,0.01065]
[1765083360345,0.01116283,89583.0,89581.0,0.04417215]
[1765083360537,0.002,89582.0,89581.0,0.04417215]
[1765083361659,0.23441958,89583.0,89581.0,0.04417215]
[1765083362161,0.01316283,89583.0,89581.0,0.04417215]
[1765083362362,0.01116283,89583.0,89581.0,0.04417215]
[1765083362574,0.002,89582.0,89581.0,0.04417215]
[1765083362929,0.01116283,89583.0,89581.0,0.04417215]
[1765083363126,0.01316283,89583.0,89581.0,0.04417215]
[1765083363330,0.23641964,89583.0,89581.0,0.04417215]
[1765083363531,0.23441964,89583.0,89581.0,0.04417215]
[1765083364838,0.002,89582.0,89581.0,0.04417215]
[1765083365035,0.23441964,89583.0,89581.0,0.04417215]
[1765083365441,0.23641964,89583.0,89581.0,0.04417215]
[1765083365713,0.01116258,89585.0,89582.0,0.01588]
[1765083365917,0.29019419,89587.0,89584.0,0.0270427]
[1765083365918,0.06694747,89587.0,89584.0,0.0270427]
[1765083366063,0.06694747,89587.0,89586.0,0.01588]
[1765083366767,0.06694747,89587.0,89586.0,0.04939897]
[1765083369782,0.06694747,89587.0,89586.0,0.05039897]
[1765083377685,0.07838747,89587.0,89586.0,0.03451897]
[1765083378644,0.11802747,89587.0,89586.0,0.001]
[1765083379953,0.23441161,89586.0,89583.0,0.03352088]
[1765083380374,0.25853161,89586.0,89583.0,0.03352088]
[1765083380906,0.22325415,89584.0,89583.0,0.03352088]
[1765083381103,0.22325415,89584.0,89583.0,0.03452088]
[1765083381777,0.22325415,89584.0,89583.0,0.03352088]
[1765083382977,0.22325415,89584.0,89575.0,0.01065]
[1765083382978,0.01116345,89578.0,89575.0,0.01065]
[1765083383125,0.0111632,89580.0,89579.0,0.03352088]
[1765083384554,0.0111632,89580.0,89579.0,0.03452088]
[1765083384952,0.0111632,89580.0,89579.0,0.03552088]
[1765083386965,0.01116308,89581.0,89579.0,0.03552088]
[1765083387190,0.02260283,89583.0,89579.0,0.04668421]
[1765083387330,0.02260283,89583.0,89579.0,0.01316333]
[1765083387515,0.02260283,89583.0,89580.0,0.03352174]
[1765083388319,0.01116283,89583.0,89582.0,0.01065]
[1765083389068,0.01116283,89583.0,89582.0,0.04417174]
[1765083390526,0.01116283,89583.0,89582.0,0.04517174]
[1765083391250,0.23441947,89583.0,89582.0,0.04517174]
[1765083391447,0.28549947,89583.0,89582.0,0.03452174]
[1765083392174,0.26137947,89583.0,89582.0,0.03452174]
[1765083393105,0.26137947,89583.0,89582.0,0.001]
[1765083397097,0.24585947,89583.0,89582.0,0.001]
[1765083400434,0.02260283,89583.0,89582.0,0.001]
[1765083401038,0.01116258,89585.0,89582.0,0.23542185]
[1765083401260,0.01116258,89585.0,89582.0,0.01216295]
[1765083401946,0.01116258,89585.0,89582.0,0.01116295]
[1765083402147,0.01116258,89585.0,89582.0,0.01216295]
[1765083406229,0.06694747,89587.0,89584.0,0.0111627]
[1765083406435,0.06694747,89587.0,89585.0,0.01637]
[1765083407813,0.06694747,89587.0,89585.0,0.23961931]
[1765083408089,0.06794747,89587.0,89585.0,0.23961931]
[1765083409803,0.06694747,89587.0,89585.0,0.23961931]
[1765083409973,0.06694747,89587.0,89585.0,0.24061931]
[1765083412930,0.06694747,89587.0,89586.0,0.03766]
[1765083413364,0.06694747,89587.0,89586.0,0.01637]
[1765083414812,0.06694747,89587.0,89586.0,0.01737]
[1765083417243,0.06694747,89587.0,89586.0,0.04751033]
[1765083418807,0.06694747,89587.0,89586.0,0.03114033]
[1765083420200,0.06694747,89587.0,89586.0,0.25438949]
[1765083421317,0.06694747,89587.0,89586.0,0.03114033]
[1765083422564,0.06694747,89587.0,89586.0,0.001]
[1765083424263,0.06694747,89587.0,89586.0,0.03114033]
[1765083428724,0.06694747,89587.0,89586.0,0.001]
[1765083430260,0.06694747,89587.0,89586.0,0.03114033]
[1765083431843,0.06694747,89587.0,89586.0,0.001]
[1765083432142,0.06694747,89587.0,89586.0,0.03114344]
[1765083437468,0.06694747,89587.0,89586.0,0.03197448]
[1765083442951,0.06694747,89587.0,89586.0,0.00183104]
[1765083445731,0.13947262,89587.0,89586.0,0.00183104]
[1765083445947,0.16177262,89587.0,89586.0,0.00183104]
[1765083446163,0.13947262,89587.0,89586.0,0.00183104]
[1765083446374,0.13947196,89587.0,89586.0,0.00083104]
[1765083446583,0.16177196,89587.0,89586.0,0.00083104]
[1765083447238,0.16377196,89587.0,89586.0,0.00083104]
[1765083460055,0.16375039,89587.0,89586.0,0.00083104]
[1765083471896,0.14145039,89587.0,89586.0,0.00083104]
[1765083475810,0.13104557,89587.0,89586.0,0.00083104]
[1765083476131,0.14146933,89587.0,89586.0,0.00083104]
[1765083478162,0.16376933,89587.0,89586.0,0.00083104]
[1765083480627,0.17549933,89587.0,89586.0,0.00083104]
[1765083480833,0.15319933,89587.0,89586.0,0.00083104]
[1765083482606,0.17549933,89587.0,89586.0,0.00083104]
[1765083482971,0.15319933,89587.0,89586.0,0.00083104]
[1765083488564,0.17549933,89587.0,89586.0,0.00083104]
[1765083492247,0.15319933,89587.0,89586.0,0.00083104]
[1765083496204,0.17549933,89587.0,89586.0,0.00083104]
[1765083497708,0.15319933,89587.0,89586.0,0.00083104]
[1765083504470,0.17079933,89587.0,89586.0,0.00083104]
[1765083504673,0.09697123,89587.0,89586.0,0.00083104]
[1765083505283,0.08654747,89587.0,89586.0,0.00083104]
[1765083510053,0.30979414,89587.0,89586.0,0.00083104]
[1765083514836,0.34817414,89587.0,89586.0,0.00083104]
[1765083516287,0.34817414,89587.0,89586.0,0.03435237]
[1765083517576,0.34817414,89587.0,89586.0,0.00083104]
[1765083517975,0.37047414,89587.0,89586.0,0.00083104]
[1765083518415,0.34817414,89587.0,89586.0,0.00083104]
[1765083533291,0.35859842,89587.0,89586.0,0.00083104]
[1765083533947,0.34817414,89587.0,89586.0,0.00083104]
[1765083534095,0.35860019,89587.0,89586.0,0.00083104]
[1765083550458,0.37040019,89587.0,89586.0,0.00083104]
[1765083558751,0.37040594,89587.0,89586.0,0.00083104]
[1765083559376,0.34737594,89587.0,89586.0,0.00083104]
[1765083560288,0.31442594,89587.0,89586.0,0.00083104]
[1765083560548,0.32022594,89587.0,89586.0,0.00083104]
[1765083567713,0.32022497,89587.0,89586.0,0.00083104]
[1765083573630,0.08654747,89587.0,89586.0,0.00083104]
[1765083573836,0.08654747,89587.0,89586.0,0.03435237]
[1765083601232,0.09697878,89587.0,89586.0,0.03435237]
[1765083604269,0.10867878,89587.0,89586.0,0.03435237]
[1765083605503,0.13345878,89587.0,89586.0,0.03435237]
[1765083606880,0.10867878,89587.0,89586.0,0.03435237]
[1765083612522,0.09697878,89587.0,89586.0,0.03435237]
[1765083617366,0.08654747,89587.0,89586.0,0.03435237]
[1765083618364,0.002,89587.0,89586.0,0.29438153]
[1765083619540,0.01116196,89590.0,89587.0,0.01116233]
[1765083619739,0.01116196,89590.0,89589.0,0.01549]
[1765083620252,0.01116196,89590.0,89589.0,0.0490071]
[1765083621352,0.002,89590.0,89589.0,0.0490071]
[1765083622295,0.002,89590.0,89589.0,0.0702971]
[1765083625038,0.002,89590.0,89589.0,0.07103763]
[1765083626959,0.002,89590.0,89589.0,0.09336179]
[1765083627146,0.002,89590.0,89589.0,0.07103763]
[1765083628286,0.01116133,89595.0,89589.0,0.07103763]
[1765083628287,0.01116171,89592.0,89589.0,0.06190971]
[1765083628433,0.01116158,89593.0,89589.0,0.06116918]
[1765083628641,0.01116158,89593.0,89592.0,0.01065]
[1765083629297,0.01116133,89595.0,89592.0,0.02181171]
[1765083629455,0.01116133,89595.0,89592.0,0.03297329]
[1765083629661,0.01116133,89595.0,89592.0,0.02181171]
[1765083629662,0.23438836,89595.0,89592.0,0.02181171]
[1765083630072,0.01116133,89595.0,89593.0,0.01921286]
[1765083630380,0.23438844,89595.0,89593.0,0.01921286]
[1765083631312,0.23538844,89595.0,89593.0,0.01921286]
[1765083631839,0.23538844,89595.0,89593.0,0.02021286]
[1765083632170,0.23538844,89595.0,89593.0,0.001]
[1765083632578,0.23538844,89595.0,89594.0,0.02021286]
[1765083634029,0.23438844,89595.0,89594.0,0.02021286]
[1765083634340,0.001,89595.0,89594.0,0.02021286]
[1765083644265,0.001,89595.0,89594.0,0.02080254]
[1765083646126,0.001,89595.0,89594.0,0.05843254]
[1765083646298,0.001,89595.0,89594.0,0.03714254]
[1765083648497,0.001,89595.0,89594.0,0.08073254]
[1765083649700,0.01116083,89599.0,89596.0,0.01116121]
[1765083649870,0.01116083,89599.0,89598.0,0.02699]
[1765083650459,0.01116083,89599.0,89598.0,0.06050447]
[1765083650861,0.01116071,89600.0,89598.0,0.06050447]
[1765083651058,0.01116071,89600.0,89599.0,0.01634]
[1765083651449,0.01116071,89600.0,89599.0,0.04985447]
[1765083651654,0.06694747,89603.0,89600.0,0.01116071]
[1765083651900,0.06694747,89603.0,89602.0,0.01065]
[1765083652303,0.06694747,89603.0,89602.0,0.04416447]
[1765083653684,0.06894747,89603.0,89602.0,0.04416447]
[1765083659151,0.002,89603.0,89602.0,0.06050447]
[1765083661162,0.002,89603.0,89602.0,0.04416447]
[1765083661780,0.002,89603.0,89602.0,0.08175447]
[1765083662939,0.00024126,89606.0,89603.0,0.23436527]
[1765083663140,0.00024126,89606.0,89605.0,0.0163]
[1765083663589,0.00024126,89606.0,89605.0,0.02745971]
[1765083665372,0.00024126,89606.0,89605.0,0.02845971]
[1765083666590,0.00024126,89606.0,89605.0,0.04974971]
[1765083670917,0.00024126,89606.0,89605.0,0.05000759]
[1765083673902,0.00024126,89606.0,89605.0,0.27320942]
[1765083674104,0.00024126,89606.0,89605.0,0.05000759]
[1765083678950,0.00024126,89606.0,89605.0,0.27320942]
[1765083679699,0.00024126,89606.0,89605.0,0.05000759]
[1765083682606,0.00024126,89606.0,89605.0,0.06065759]
[1765083684206,0.00024126,89606.0,89605.0,0.03936759]
[1765083687905,0.00024126,89606.0,89605.0,0.02306759]
[1765083688026,0.00024126,89606.0,89605.0,0.01241759]
[1765083688227,0.12017159,89606.0,89605.0,0.01241759]
[1765083688436,0.13059507,89606.0,89605.0,0.00125788]
[1765083688639,0.15289507,89606.0,89605.0,0.00125788]
[1765083688833,0.13059507,89606.0,89605.0,0.00125788]
[1765083689057,0.15289507,89606.0,89605.0,0.00025788]
[1765083690312,0.15489507,89606.0,89605.0,0.00025788]
[1765083690490,0.15689507,89606.0,89605.0,0.00025788]
[1765083690897,0.15489507,89606.0,89605.0,0.00025788]
[1765083691102,0.15889507,89606.0,89605.0,0.00025788]
[1765083691321,0.13659507,89606.0,89605.0,0.00025788]
[1765083691523,0.15889507,89606.0,89605.0,0.00025788]
[1765083692902,0.18120317,89606.0,89605.0,0.00025788]
[1765083694191,0.15890317,89606.0,89605.0,0.00025788]
[1765083695280,0.18120317,89606.0,89605.0,0.00025788]
[1765083696643,0.15890317,89606.0,89605.0,0.00025788]
[1765083696963,0.15888864,89606.0,89605.0,0.00025788]
[1765083700480,0.14847969,89606.0,89605.0,0.00025788]
[1765083701674,0.17077969,89606.0,89605.0,0.00025788]
[1765083702464,0.24106583,89606.0,89605.0,0.00025788]
[1765083702837,0.25146357,89606.0,89605.0,0.00025788]
[1765083703392,0.15887743,89606.0,89605.0,0.00025788]
[1765083703613,0.18118553,89606.0,89605.0,0.00025788]
[1765083704695,0.19234948,89606.0,89605.0,0.00025788]
[1765083713639,0.18194364,89606.0,89605.0,0.00025788]
[1765083713819,0.19234823,89606.0,89605.0,0.00025788]
[1765083721574,0.27309215,89606.0,89605.0,0.00025788]
[1765083721791,0.25078405,89606.0,89605.0,0.00025788]
[1765083722101,0.17004013,89606.0,89605.0,0.00025788]
[1765083722366,0.20994823,89606.0,89605.0,0.00025788]
[1765083725158,0.0111622,89588.0,89585.0,0.01041679]
[1765083725401,0.0111627,89584.0,89581.0,0.01116283]
[1765083725574,0.01116283,89583.0,89579.0,0.01116333]
[1765083725954,0.01116283,89583.0,89579.0,0.04468425]
[1765083726360,0.01116283,89583.0,89579.0,0.01116333]
[1765083726566,0.01116283,89583.0,89579.0,0.23442955]
[1765083726784,0.01116283,89583.0,89580.0,0.02299258]
[1765083727204,0.01116283,89583.0,89580.0,0.03415578]
[1765083728032,0.0111627,89584.0,89580.0,0.03415578]
[1765083728441,0.0111627,89584.0,89581.0,0.01116308]
[1765083729558,0.0111627,89584.0,89581.0,0.01216308]
[1765083731125,0.0111627,89584.0,89581.0,0.01316308]
[1765083732180,0.0111627,89584.0,89581.0,0.23642419]
[1765083732602,0.02299258,89585.0,89582.0,0.01116295]
[1765083733443,0.31208109,89586.0,89583.0,0.01116283]
[1765083733444,0.07766747,89586.0,89583.0,0.01116283]
[1765083734273,0.07766747,89586.0,89584.0,0.22325415]
[1765083734620,0.06694747,89586.0,89584.0,0.23390415]
[1765083736510,0.06694747,89586.0,89584.0,0.01065]
[1765083737155,0.06694747,89586.0,89584.0,0.01165]
[1765083737400,0.06694747,89586.0,89585.0,0.22325166]
[1765083737568,0.06694747,89586.0,89584.0,0.01165]
[1765083738350,0.06694747,89586.0,89584.0,0.01065]
[1765083738692,0.06694747,89586.0,89585.0,0.001]
[1765083739841,0.06694747,89586.0,89584.0,0.23390188]
[1765083740044,0.06694747,89586.0,89584.0,0.23490188]
[1765083740596,0.06694747,89586.0,89584.0,0.23390188]
[1765083740891,0.06694747,89586.0,89585.0,0.001]
[1765083741340,0.06694747,89586.0,89584.0,0.23390188]
[1765083742154,0.06694747,89586.0,89584.0,0.23490188]
[1765083744273,0.06694747,89586.0,89584.0,0.01165]
[1765083750019,0.22325166,89585.0,89584.0,0.01165]
[1765083750803,0.22325166,89585.0,89584.0,0.01065]
[1765083751202,0.22325166,89585.0,89584.0,0.01165]
[1765083752130,0.27569166,89585.0,89584.0,0.001]
[1765083753027,0.22325913,89582.0,89581.0,0.01165]
[1765083753260,0.25135913,89582.0,89581.0,0.01165]
[1765083753440,0.22327159,89577.0,89576.0,0.04017909]
[1765083753591,0.23533159,89577.0,89576.0,0.04017909]
[1765083754437,0.23533159,89577.0,89575.0,0.04017909]
[1765083755057,0.23533159,89577.0,89574.0,0.03352399]
[1765083755058,0.22327658,89575.0,89574.0,0.04017909]
[1765083755258,0.22328156,89573.0,89572.0,0.00110722]
[1765083755467,0.25138156,89573.0,89572.0,0.00110722]
[1765083755662,0.27572156,89573.0,89572.0,0.00110722]
[1765083757904,0.27672156,89573.0,89572.0,0.00110722]
[1765083766741,0.27642551,89573.0,89572.0,0.00110722]
[1765083777479,0.29872551,89573.0,89572.0,0.00110722]
[1765083778488,0.27642551,89573.0,89572.0,0.00110722]
[1765083783389,0.26968551,89573.0,89572.0,0.00110722]
[1765083785164,0.30374902,89573.0,89572.0,0.00110722]
[1765083787352,0.01143351,89573.0,89572.0,0.01175722]
[1765083787552,0.001,89573.0,89572.0,0.01175722]
[1765083794585,0.22428156,89573.0,89572.0,0.01175722]
[1765083794755,0.24030156,89573.0,89572.0,0.00110722]
[1765083794959,0.26466156,89573.0,89572.0,0.00110722]
[1765083795378,0.28696156,89573.0,89572.0,0.00110722]
[1765083796023,0.26466156,89573.0,89572.0,0.00110722]
[1765083796226,0.27509547,89573.0,89572.0,0.00110722]
[1765083797746,0.29739547,89573.0,89572.0,0.00110722]
[1765083799234,0.25073547,89573.0,89572.0,0.00110722]
[1765083799445,0.27509547,89573.0,89572.0,0.00110722]
[1765083806024,0.29739547,89573.0,89572.0,0.00110722]
[1765083807927,0.23471547,89573.0,89572.0,0.00110722]
[1765083808133,0.22428156,89573.0,89572.0,0.00110722]
[1765083808895,0.24188156,89573.0,89572.0,0.00110722]
[1765083814733,0.28226156,89573.0,89572.0,0.00110722]
[1765083815673,0.29268729,89573.0,89572.0,0.00110722]
[1765083820820,0.25230729,89573.0,89572.0,0.00110722]
[1765083823195,0.02902573,89573.0,89572.0,0.00110722]
[1765083823402,0.001,89573.0,89572.0,0.03806722]
[1765083823608,0.001,89573.0,89572.0,0.26135128]
[1765083824172,0.001,89573.0,89572.0,0.29011436]
[1765083824344,0.02876308,89581.0,89578.0,0.01116345]
[1765083824543,0.0176,89581.0,89580.0,0.01065]
[1765083825842,0.0186,89581.0,89580.0,0.01065]
[1765083830957,0.001,89581.0,89580.0,0.23391412]
[1765083831102,0.001,89581.0,89580.0,0.24958412]
[1765083832222,0.001,89581.0,89580.0,0.02632]
[1765083832541,0.001,89581.0,89580.0,0.24958412]
[1765083834335,0.001,89581.0,89580.0,0.02632]
[1765083836835,0.001,89581.0,89580.0,0.04761]
[1765083837049,0.001,89581.0,89580.0,0.02632]
[1765083837666,0.001,89581.0,89580.0,0.04761]
[1765083838458,0.001,89581.0,89580.0,0.02632]
[1765083838878,0.001,89581.0,89580.0,0.02732]
[1765083840224,0.01116283,89583.0,89580.0,0.02732]
[1765083840844,0.01116283,89583.0,89580.0,0.0384832]
[1765083841058,0.01116283,89583.0,89580.0,0.0374832]
[1765083841351,0.01116283,89583.0,89580.0,0.0384832]
[1765083841558,0.23441663,89585.0,89580.0,0.0384832]
[1765083841559,0.01116258,89585.0,89582.0,0.01116295]
[1765083841727,0.01116258,89585.0,89584.0,0.01065]
[1765083841954,0.22326162,89581.0,89580.0,0.01165]
[1765083842285,0.22326162,89581.0,89580.0,0.001]
[1765083843413,0.0111632,89580.0,89577.0,0.03352346]
[1765083843624,0.23442976,89580.0,89577.0,0.03352346]
[1765083844816,0.23542976,89580.0,89577.0,0.03352346]
[1765083845166,0.2387491,89578.0,89577.0,0.03352346]
[1765083845408,0.2387491,89578.0,89577.0,0.001]
[1765083845654,0.2632391,89578.0,89577.0,0.001]
[1765083845774,0.2808391,89578.0,89577.0,0.001]
[1765083845977,0.3031391,89578.0,89577.0,0.001]
[1765083846485,0.24558156,89573.0,89572.0,0.00110722]
[1765083846690,0.27272156,89573.0,89572.0,0.00110722]
[1765083846985,0.29721156,89573.0,89572.0,0.00110722]
[1765083847616,0.29921156,89573.0,89572.0,0.00110722]
[1765083848538,0.27691156,89573.0,89572.0,0.00110722]
[1765083857077,0.29921156,89573.0,89572.0,0.00110722]
[1765083857553,0.36173455,89573.0,89572.0,0.00110722]
[1765083857751,0.33943455,89573.0,89572.0,0.00110722]
[1765083857951,0.36173455,89573.0,89572.0,0.00110722]
[1765083859234,0.35973455,89573.0,89572.0,0.00110722]
[1765083859709,0.37115209,89573.0,89572.0,0.00110722]
[1765083860291,0.36073455,89573.0,89572.0,0.00110722]
[1765083860887,0.37115146,89573.0,89572.0,0.00110722]
[1765083862150,0.40123636,89573.0,89572.0,0.00110722]
[1765083870746,0.40123556,89573.0,89572.0,0.00110722]
[1765083875178,0.40124205,89573.0,89572.0,0.00110722]
[1765083875378,2.076745,89573.0,89572.0,0.00110722]
[1765083876368,3.242645,89573.0,89572.0,0.00110722]
[1765083876780,3.224245,89573.0,89572.0,0.00110722]
[1765083876984,1.057845,89573.0,89572.0,0.00110722]
[1765083877406,2.085945,89573.0,89572.0,0.00110722]
[1765083877613,2.16992209,89573.0,89572.0,0.00110722]
[1765083877835,1.33382209,89573.0,89572.0,0.00110722]
[1765083878032,1.29792209,89573.0,89572.0,0.00110722]
[1765083878450,1.98802209,89573.0,89572.0,0.00110722]
[1765083878691,1.66422209,89573.0,89572.0,0.00110722]
[1765083879378,2.05022209,89573.0,89572.0,0.00110722]
[1765083879989,1.69522209,89573.0,89572.0,0.00110722]
[1765083880185,1.36192209,89573.0,89572.0,0.00110722]
[1765083880382,1.28682209,89573.0,89572.0,0.00110722]
[1765083880582,1.14662209,89573.0,89572.0,0.00110722]
[1765083881097,1.13142209,89573.0,89572.0,0.00110722]
[1765083881467,1.14662209,89573.0,89572.0,0.00110722]
[1765083881667,1.11692209,89573.0,89572.0,0.00110722]
[1765083882104,1.07002209,89573.0,89572.0,0.00110722]
[1765083882304,1.003645,89573.0,89572.0,0.00110722]
[1765083886018,0.727245,89573.0,89572.0,0.00110722]
[1765083886165,0.744845,89573.0,89572.0,0.00110722]
[1765083891229,5.744845,89573.0,89572.0,0.00110722]
[1765083895630,5.987845,89573.0,89572.0,0.00110722]
[1765083897074,4.180645,89573.0,89572.0,0.00110722]
[1765083897311,3.855445,89573.0,89572.0,0.00110722]
[1765083897986,5.702245,89573.0,89572.0,0.00110722]
[1765083898434,5.562045,89573.0,89572.0,0.00110722]
[1765083898668,5.499245,89573.0,89572.0,0.00110722]
[1765083899080,5.66165006,89573.0,89572.0,0.00110722]
[1765083899222,5.32275006,89573.0,89572.0,0.00110722]
[1765083899788,3.624745,89573.0,89572.0,0.00110722]
[1765083900117,5.009345,89573.0,89572.0,0.00110722]
[1765083900356,3.065545,89573.0,89572.0,0.00110722]
[1765083900560,3.083145,89573.0,89572.0,0.00110722]
[1765083901082,4.221745,89573.0,89572.0,0.00110722]
[1765083901500,4.33145006,89573.0,89572.0,0.00110722]
[1765083902124,4.61845006,89573.0,89572.0,0.00110722]